Cogmind - Beta 9 @@@ ROGUE MODE // 2019.10.23 @ 16:49:47 // Halloween2019/Abominations Player: Nikolayag Result: Destroyed by S-10 Pest with Light Assault Rifle Performance ------------- Evolutions (0) 0 Regions Visited (1) 200 Robots Destroyed (19) 95 Value Destroyed (518) 518 Prototype IDs (0) 0 Alien Tech Used (0) 0 Bonus (0) 0 TOTAL SCORE: 813 Bonus ------- None Cogmind --------- Core Integrity 0/250 Matter 270/300 Energy 99/100 System Corruption 0% Temperature Cool (0) Location -10/Materials Parts ------- Power (1) Propulsion (2) Wheel Utility (2) Large Storage Unit Large Storage Unit Weapon (2) Grenade Launcher Plasma Cutter Inventory (16) Light Ion Engine Light Treads Light Treads Peak State ------------ Power (None) Propulsion Wheel Wheel Utility Small Storage Unit Medium Storage Unit Weapon Plasma Cutter Plasma Cutter Inventory Light Ion Engine Light Treads Light Treads Grenade Launcher [Rating: 8] Favorites ----------- Power Ion Engine Engine Ion Engine Propulsion Wheel Wheel Wheel Utility Small Storage Unit Storage Small Storage Unit Weapon Small Laser Energy Gun Small Laser Launcher Grenade Launcher Special Weapon Plasma Cutter Build | -11 -10 ------- Run | Scr Mat Slots Evolved . | . . Power . | . . Propulsion . | . . Utility . | . . Weapon . | . . Parts Attached 24 | 7 17 Power 2 | 1 1 Engine 2 | 1 1 Core . | . . Reactor . | . . Propulsion 7 | 2 5 Treads . | . . Leg . | . . Wheel 7 | 2 5 Hover . | . . Flight . | . . Utility 5 | 2 3 Device . | . . Storage 5 | 2 3 Processor . | . . Hackware . | . . Protection . | . . Artifact . | . . Weapon 10 | 2 8 Energy Gun 5 | 2 3 Energy Cannon . | . . Ballistic Gun . | . . Ballistic Cannon . | . . Launcher 2 | . 2 Special Weapon 3 | . 3 Impact Weapon . | . . Slashing Weapon . | . . Piercing Weapon . | . . Special Melee Weapon . | . . Unidentified Prototypes . | . . Parts Lost 8 | . 8 Power 1 | . 1 Propulsion 3 | . 3 Utility . | . . Weapon 4 | . 4 Highest Loss Streak 6 | . 6 Average Slot Usage (%) 83 | . 83 Engine 4 | . 4 Wheel 24 | . 24 Storage 28 | . 28 Energy Gun 9 | . 9 Launcher 6 | . 6 Special Weapon 9 | . 9 Naked Turns . | . . Heaviest Build 36 | 15 36 Greatest Support 26 | 26 26 Greatest Overweight (x) 3 | . 3 Average Overweight (x) . | . . Largest Inventory Capacity 16 | 8 16 Average Capacity 11 | 6 11 Most Carried 8 | 8 8 Average Carried 4 | 3 4 Final Capacity 16 | . 16 Final Carried 3 | . 3 Class Distribution -------------------- 100% | Mutant Dominant Class ---------------- Mutant | -10/Materials Resources | -11 -10 ----------- Run | Scr Mat Matter Collected 460 | 216 244 Remotely . | . . Salvage Created 712 | 133 579 Parts 41 | 8 33 Haulers Intercepted 1 | . 1 Recyclers Shooed 2 | . 2 Parts Field Recycled . | . . Retrieved Matter . | . . Parts Self-Destructed . | . . Prevented . | . . Kills | -11 -10 ------- Run | Scr Mat Combat Hostiles Destroyed 11 | . 11 Guns 5 | . 5 AOE 6 | . 6 Classes Destroyed 8 | 2 6 Worker 1 | . 1 Tunneler 3 | 2 1 Hauler 1 | . 1 Recycler 2 | 1 1 Operator 1 | . 1 Swarmer 2 | . 2 Grunt 4 | . 4 Abomination 5 | . 5 Best Kill Streak 6 | 3 6 Combat Bots Only 3 | . 3 Max Kills in Single Turn 3 | 1 3 Gunslinging . | . . Exploded 2 | . 2 Melee . | . . Uniques/NPCs Destroyed . | . . Combat | -11 -10 -------- Run | Scr Mat Damage Taken 773 | . 773 Core 254 | . 254 Absorbed by Shields . | . . Core Remaining (%) 100 | 100 . Volleys Fired 43 | 5 38 Largest 2 | 2 2 Hottest 90 | 80 90 Shots Fired 69 | 10 59 Gun 49 | 10 39 Cannon . | . . Launcher 9 | . 9 Special 11 | . 11 Kinetic . | . . Thermal 60 | 10 50 Explosive 9 | . 9 Electromagnetic . | . . Robot Hit Streak 10 | 3 10 Robot Miss Streak 1 | 1 1 Penetration Max . | . . Secondary Targets . | . . Shots Hit Robots 48 | 6 42 Core Hits 35 | 4 31 Critical Hits 2 | . 2 Critical Kills 1 | . 1 Critical Parts Destroyed 1 | . 1 Melee Attacks . | . . Impact . | . . Slashing . | . . Piercing . | . . Sneak Attacks . | . . Combat Hostiles . | . . Follow-up Attacks . | . . Damage Inflicted 1061 | 68 993 Guns 393 | 68 325 Cannons . | . . Explosions 585 | . 585 Melee . | . . Ramming . | . . Kinetic . | . . Thermal 476 | 68 408 Explosive 585 | . 585 Electromagnetic . | . . Impact . | . . Slashing . | . . Piercing . | . . Highest Corruption . | . . Average Corruption . | . . Corruption Purged . | . . Overload Shots . | . . Overflow Damage 16 | . 16 Projectiles . | . . Explosions 16 | . 16 Melee . | . . Knockbacks . | . . Impact . | . . Kinetic . | . . Secondary . | . . Self-Inflicted Damage 159 | . 159 Shots 6 | . 6 Rammed . | . . Targets Rammed . | . . Kicked . | . . Crushed . | . . Highest Temperature 108 | 54 108 Average Temperature 41 | 25 44 Received Heat Transfer 168 | . 168 Siege Activations . | . . Robots Corrupted . | . . Combat Hostiles . | . . Parts Fried . | . . Impact Corruptions . | . . Robots Melted . | . . Combat Hostiles . | . . Parts Melted 1 | . 1 Heat Transferred 837 | 150 687 Parts Sabotaged . | . . Parts Stolen . | . . Parts Stripped . | . . Power Chain Reactions . | . . Missiles Intercepted . | . . Alert | -11 -10 ------- Run | Scr Mat Peak Influence 130 | 15 130 Average Influence 43 | 3 49 Maximum Alert Level . | . . Low Security (%) 100 | . . Level 1 . | . . Level 2 . | . . Level 3 . | . . Level 4 . | . . Level 5 . | . . High Security . | . . Max Security . | . . Squads Dispatched 2 | . 2 Investigation 1 | . 1 Extermination . | . . Reinforcement 1 | . 1 Assault . | . . Garrison . | . . Intercept . | . . Construction Impeded . | . . Haulers Reinforced . | . . Stealth | -11 -10 --------- Run | Scr Mat Distress Signals 1 | . 1 Communications Jammed . | . . Distress Signals . | . . Times Spotted 26 | . 26 Peak Tracking Total 3 | . 3 Tactical Retreats 1 | . 1 Traps | -11 -10 ------- Run | Scr Mat Traps Triggered 2 | . 2 Indirectly . | . . Trap Hack Attempts . | . . Triggered . | . . Disarmed . | . . Reprogrammed . | . . Reused . | . . Traps Extracted . | . . Installed . | . . Triggered . | . . Machines | -11 -10 ---------- Run | Scr Mat Machines Disabled 2 | . 2 Max in Single Turn 1 | . 1 Machines Sabotaged . | . . Garrisons Compromised . | . . Overloaded Fab Kills . | . . Fab Network Shutdowns . | . . Hacking | -11 -10 --------- Run | Scr Mat Machines Accessed 1 | . 1 Terminals 1 | . 1 Fabricators . | . . Repair Stations . | . . Recycling Units . | . . Scanalyzers . | . . Garrison Access . | . . Total Hacks 4 | . 4 Successful 1 | . 1 Failed 3 | . 3 Catastrophic . | . . Database Lockouts . | . . Manual 4 | . 4 Terminals 4 | . 4 Fabricators . | . . Repair Stations . | . . Recycling Units . | . . Scanalyzers . | . . Garrison Access . | . . Terminal Hacks . | . . Fabricator Hacks . | . . Repair Station Hacks . | . . Recycling Unit Hacks . | . . Scanalyzer . | . . Garrison Access Hacks . | . . Unauthorized Hacks 5 | . 5 Terminals 1 | . 1 Operators 1 | . 1 Fabricators . | . . Repair Stations . | . . Recycling Units . | . . Scanalyzers . | . . Garrison Access . | . . Data Cores Recovered . | . . Used . | . . Hacking Detections 1 | . 1 Full Trace Events 1 | . 1 Feedback Events . | . . Feedback Blocked . | . . Robot Schematics Acquired . | . . Robots Built . | . . Matter . | . . Time . | . . Total Robot Build Rating . | . . Part Schematics Acquired . | . . Parts Built . | . . Matter . | . . Time . | . . Total Part Build Rating . | . . Parts Repaired . | . . Time . | . . Parts Recycled . | . . Recycled Matter . | . . Retrieved Matter . | . . Retrieved Components . | . . Parts Scanalyzed . | . . Part Schematics Acquired . | . . Parts Damaged . | . . Bothacking | -11 -10 ------------ Run | Scr Mat Used RIF Installer . | . . Robots Hacked . | . . Non-combat . | . . Combat . | . . Robot Hacks Applied . | . . Relay Couplers Released . | . . Robots Rewired . | . . Allies Hacked . | . . Hacks Repelled . | . . Allies | -11 -10 -------- Run | Scr Mat Total Allies . | . . Largest Group . | . . Highest-Rated Group . | . . Highest-Rated Ally . | . . Total Orders . | . . Ally Attacks . | . . Total Damage . | . . Kills . | . . Allies Corrupted . | . . Allies Melted . | . . Intel | -11 -10 ------- Run | Scr Mat Robot Analysis Total . | . . Derelict Logs Recovered . | . . Drone Launches . | . . Drone Recoveries . | . . Exploration | -11 -10 ------------- Run | Scr Mat Turns Passed 683 | 79 604 Spaces Moved 518 | 50 468 Core 1 | 1 . Treads . | . . Legs . | . . Wheels 517 | 49 468 Hover . | . . Flight . | . . Fastest Speed 50 | 50 80 Average Speed 88 | 89 88 Slowest Speed 110 | 100 110 Overloaded Moves . | . . Propulsion Burnouts . | . . Robots Hopped . | . . Cave-ins Triggered . | . . Exploration Rate (%) 24 | 4 45 Regions Visited 1 Branch Regions . Pre-discovered Areas . | . . Known Exits Taken . | . . Unknown Exits Taken 1 | 1 . Scrap Searched . | . . Spaces Dug 7 | . 7 Terrain Destroyed 60 | . 60 Melee . | . . Projectile . | . . AOE 60 | . 60 Actions | -11 -10 --------- Run | Scr Mat Total 653 | 70 583 Wait 56 | 1 55 Move 517 | 49 468 Hop . | . . Pick Up 9 | 8 1 Fast Attach 13 | 7 6 Attach 5 | . 5 Detach . | . . Swap 6 | . 6 Drop 4 | . 4 Fire 43 | 5 38 Melee . | . . Ram . | . . Kick . | . . Crush . | . . Escape Stasis . | . . Rewire . | . . Trap . | . . Miscellaneous . | . . Route ------- -11/Scrapyard -10/Materials (discovered 1 exit: [*Mat]) History --------- Turn | Location | Event 39 | -11/Scrapyard | Discovered new exit (range 14) 80 | -11/Scrapyard | Entered Materials 291 | -10/Materials | Lost 6 parts (1p2n3w) 352 | -10/Materials | Build established: Mutant 468 | -10/Materials | Discovered new exit (range 15) 534 | -10/Materials | Core integrity fell below 50% 540 | -10/Materials | Core integrity fell below 20% 563 | -10/Materials | Discovered new exit (range 6) 684 | -10/Materials | Destroyed by S-10 Pest with Light Assault Rifle Last Messages --------------- 00589_ U-05 Engineer builds a Wall. 00593_ U-05 Engineer lays Concrete. 00596_ U-05 Engineer builds a Wall. 00600_ U-05 Engineer lays Concrete. 00603_ U-05 Engineer builds a Door. 00607_ U-05 Engineer lays Concrete. 00611_ U-05 Engineer builds a Wall. 00615_ U-05 Engineer lays Concrete. 00654_ U-05 Engineer builds a Wall. 00655_ The unstable cave ceiling collapses. 00662_ U-05 Engineer builds a Wall. 00663_ K-01 Serf collects debris. 00677_ A-02 Transporter destroyed. 00679_ The unstable cave ceiling collapses. 00682_ S-10 Pest destroyed. 00682_ K-01 Serf destroyed. 00682_ Destroyed Lgt. Ion Engine. 00682_ Destroyed Flight Unit. 00682_ S-10 Pest destroyed. 00682_ Machine disabled. Map ----- +----------------------------------------------------+ | ############## ##??????????????????????????????? | | # """ # #???????????????????????????????? | | # "T" """ # #####???????????????????????????? | | # """ + #???????????????????????????? | | # !! """ # ||#???????????????????????????? | | # !| # !!#???????????????????????????? | | ############## !!#???????????????????????????? | | #???########## !!#???????????????????????????? | | #???# # !!#???????????????????????????? | | #####%""" ^ #####???????????????????????????? | | /%"T" # # ##????????????????????????????? | | ##### # ## #????????????????????????????? | | #???# + %# #????????????????????????????? | | ????#%""" # # ##????????????????????????????? | | #???# """ # # #????????????????????????????? | | ##### """ # # #????????????????????????????? | | + # # ##????????????????????????????? | | ############ # % # #????????????????????????????? | | #????????##### ####????????????????????????????? | | ?????# # #???????????????????????????????? | | ###### # #???######??????????????????????? | | + # #??##! !##?????????????????????? | | ######### #??#! !#????#????????????????? | | ## # ####! !### ## # ?????????? | | ## """ # ## = #????????????? | | #+## ## "T" # @ r %[ ????????? | | ## ## + ^ =!! < !%s[= ????????? | | ## ## # """ =%= *%= ????????? | | ## ## # "" # ! #" +##?????????? | | ## #####+### "" #" |"! "# ?????????? | | # % "" #"""""""#?????????????? | | + # #?#######?????????????? | | # % #! ! !#?????????????????????? | | ###+####### +### #!! #?????????????????????? | | ## ## #!! #?????????????????????? | | !## ## # +?????????????????????? | | ## ## #######?????????????????????? | | #### ## ##??????????????????????????? | | ?# # % ####### #??????????????????? | | #+#######+#### #??????????????????? | | # #??????????????????? | | " + ???????????????? | | " # #####??????????????????????? | | " ### #####+###??????????????????????????? | | ???# #??????????????????????????????????? | | ???# """" #??????????????????????????????????? | | ??### """" #??????????????????????????????????? | | #??# """" #??????????????????????????????????? | | ???# #??????????????????????????????????? | | ???# #??????????????????????????????????? | +----------------------------------------------------+ Best States ------------- Heat Dissipation 25 Energy Generation 10 Energy Capacity 250 Matter Stores 300 Matter Capacity 300 Sight Range 16 Terrain Scan Density 10 Evasion (%) 44 Item Schematics ----------------- None Robot Schematics ------------------ None Fabricated ------------ Nothing Alien Tech Used ----------------- None Achievements -------------- None Challenges ------------ None Game ------ Seed CloakingLaserExtractor Manual? 0 Play Time 00:08:59 Cumulative 158.6 hours Start 2019.10.23 @ 16:45:02 End 2019.10.23 @ 16:49:47 Sessions 1 Manual Loads 0 Difficulty Rogue Special Mode Halloween2019/Abominations Game No. 166 Rogue 166 Adventurer 0 Explorer 0 Win Type - Total 3 Types 3/0/0/0/0/0/0 Lore% 48 Gallery% 67 Achievement% 42 Wizard Run 0 Options --------- ASCII 0 Keyboard 1 Movement Numpad Keybinds 0 Fullscreen 1 Font 18/SmallcapsGlow Map View 76x50 Tactical HUD 1 Map Filters NONE Filters NONE Steam 1 RUN: 7f417d3a-178f-45ba-93c8-6a5362e79e3d